[Event "Early-Titled-Tuesday-Blitz-September-12-2023"]
[Site "Chess.com"]
[Date "2023.09.12"]
[Round "4"]
[White "Russian_berezka"]
[Black "MAGMAchess02"]
[Result "1-0"]
[WhiteElo "2617"]
[BlackElo "2442"]
[TimeControl "180+1"]
[EndTime "8:38:35 PDT"]
[Termination "Russian_berezka won on time"]

1. d4 {[%clk 0:03:00.9]} 1... Nf6 {[%clk 0:02:56.7]} 2. c4 {[%clk 0:03:01.4]}
2... c5 {[%clk 0:02:54.9]} 3. d5 {[%clk 0:03:01.5]} 3... b5 {[%clk 0:02:55.5]}
4. cxb5 {[%clk 0:03:01.8]} 4... a6 {[%clk 0:02:56.1]} 5. bxa6 {[%clk 0:03:02.2]}
5... g6 {[%clk 0:02:55.9]} 6. Nc3 {[%clk 0:03:02.5]} 6... Bg7 {[%clk 0:02:55.8]}
7. e4 {[%clk 0:03:03]} 7... O-O {[%clk 0:02:56.1]} 8. Be2 {[%clk 0:03:02.9]}
8... Qa5 {[%clk 0:02:55.5]} 9. Bd2 {[%clk 0:03:03.6]} 9... Bxa6 {[%clk
0:02:47.3]} 10. e5 {[%clk 0:03:03.3]} 10... Ne8 {[%clk 0:02:45.5]} 11. Nf3
{[%clk 0:03:03.7]} 11... d6 {[%clk 0:02:41.1]} 12. e6 {[%clk 0:03:03.4]} 12...
Nc7 {[%clk 0:02:25.2]} 13. exf7+ {[%clk 0:02:11.4]} 13... Rxf7 {[%clk
0:02:25.1]} 14. Ng5 {[%clk 0:02:09]} 14... Rf5 {[%clk 0:02:19]} 15. O-O {[%clk
0:01:52.5]} 15... Nd7 {[%clk 0:01:34.4]} 16. Bg4 {[%clk 0:01:30.6]} 16... Bxf1
{[%clk 0:01:09.9]} 17. Bxf5 {[%clk 0:01:30.2]} 17... Bb5 {[%clk 0:00:44.8]} 18.
Nxb5 {[%clk 0:01:03.8]} 18... Qxb5 {[%clk 0:00:41.6]} 19. a4 {[%clk 0:01:04]}
19... Qxb2 {[%clk 0:00:25]} 20. Rb1 {[%clk 0:01:04.6]} 20... Qd4 {[%clk
0:00:14.2]} 21. Bxd7 {[%clk 0:01:01.9]} 21... Qxd5 {[%clk 0:00:11.2]} 22. h4
{[%clk 0:00:39.4]} 22... h6 {[%clk 0:00:11.1]} 23. Nh3 {[%clk 0:00:33.3]} 23...
Ne6 {[%clk 0:00:07.5]} 24. Qg4 {[%clk 0:00:23.3]} 24... Nf8 {[%clk 0:00:05]} 25.
Be3 {[%clk 0:00:15.7]} 25... Qf7 {[%clk 0:00:04.2]} 26. Bb5 {[%clk 0:00:14.7]}
26... e6 {[%clk 0:00:03.4]} 27. Qg3 {[%clk 0:00:10.7]} 27... Be5 {[%clk
0:00:02.7]} 28. Qg4 {[%clk 0:00:06.1]} 28... Bf6 {[%clk 0:00:03]} 29. Bxh6
{[%clk 0:00:05.1]} 29... d5 {[%clk 0:00:02.2]} 30. Bg5 {[%clk 0:00:03.9]} 30...
Nh7 {[%clk 0:00:02]} 31. Qf4 {[%clk 0:00:03.3]} 31... Bxg5 {[%clk 0:00:01.9]}
32. Qxf7+ {[%clk 0:00:03.3]} 32... Kxf7 {[%clk 0:00:02.6]} 33. Nxg5+ {[%clk
0:00:03.4]} 33... Nxg5 {[%clk 0:00:02.9]} 34. hxg5 {[%clk 0:00:04.3]} 34... Rb8
{[%clk 0:00:03.1]} 35. f4 {[%clk 0:00:04.2]} 35... Ke7 {[%clk 0:00:03]} 36. a5
{[%clk 0:00:04.4]} 36... c4 {[%clk 0:00:02.9]} 37. a6 {[%clk 0:00:04.3]} 37...
Kd6 {[%clk 0:00:02.5]} 38. a7 {[%clk 0:00:04.8]} 38... Ra8 {[%clk 0:00:03]} 39.
Ra1 {[%clk 0:00:05.5]} 39... Kc5 {[%clk 0:00:03.4]} 40. Bd7 {[%clk 0:00:05.5]}
40... Kd6 {[%clk 0:00:02.4]} 41. Bc8 {[%clk 0:00:05.2]} 1-0

[Event "Early-Titled-Tuesday-Blitz-September-12-2023"]
[Site "Chess.com"]
[Date "2023.09.12"]
[Round "4"]
[White "kuba2006"]
[Black "emeli_chess"]
[Result "1-0"]
[WhiteElo "2536"]
[BlackElo "2354"]
[TimeControl "180+1"]
[EndTime "8:38:37 PDT"]
[Termination "kuba2006 won on time"]

1. b3 {[%clk 0:03:00.9]} 1... e5 {[%clk 0:02:59.2]} 2. Bb2 {[%clk 0:02:58.7]}
2... Nc6 {[%clk 0:02:59]} 3. e3 {[%clk 0:02:58.8]} 3... a6 {[%clk 0:02:58.5]} 4.
f4 {[%clk 0:02:58.8]} 4... exf4 {[%clk 0:02:47.9]} 5. exf4 {[%clk 0:02:59.7]}
5... d5 {[%clk 0:02:27.4]} 6. Nf3 {[%clk 0:02:59.1]} 6... Bg4 {[%clk 0:02:21.3]}
7. Be2 {[%clk 0:02:58.9]} 7... Nf6 {[%clk 0:02:13.1]} 8. O-O {[%clk 0:02:56.9]}
8... Bc5+ {[%clk 0:02:12.1]} 9. d4 {[%clk 0:02:56.7]} 9... Ba7 {[%clk
0:02:06.3]} 10. h3 {[%clk 0:02:10.4]} 10... Bxf3 {[%clk 0:02:04]} 11. Bxf3
{[%clk 0:02:11.3]} 11... O-O {[%clk 0:02:03.6]} 12. Kh1 {[%clk 0:02:09]} 12...
Re8 {[%clk 0:02:01.4]} 13. c3 {[%clk 0:01:54.3]} 13... Ne4 {[%clk 0:01:53.9]}
14. Bxe4 {[%clk 0:01:54.2]} 14... Rxe4 {[%clk 0:01:50.7]} 15. Nd2 {[%clk
0:01:53.9]} 15... Re3 {[%clk 0:01:46.2]} 16. Nf3 {[%clk 0:01:53.2]} 16... Qd7
{[%clk 0:01:27.7]} 17. Qd2 {[%clk 0:01:42]} 17... Re4 {[%clk 0:01:22.6]} 18.
Rae1 {[%clk 0:01:26.6]} 18... Rae8 {[%clk 0:01:04.7]} 19. Ne5 {[%clk 0:01:21.5]}
19... Nxe5 {[%clk 0:01:02.5]} 20. fxe5 {[%clk 0:01:21.5]} 20... Rxe1 {[%clk
0:01:01.7]} 21. Qxe1 {[%clk 0:01:21.6]} 21... f6 {[%clk 0:00:57.7]} 22. Qg3
{[%clk 0:01:14]} 22... fxe5 {[%clk 0:00:55.9]} 23. dxe5 {[%clk 0:01:14.9]} 23...
Qe6 {[%clk 0:00:53.6]} 24. Re1 {[%clk 0:01:11.2]} 24... c6 {[%clk 0:00:53.1]}
25. Bc1 {[%clk 0:01:10.4]} 25... Bb8 {[%clk 0:00:51.1]} 26. Bf4 {[%clk
0:01:10.8]} 26... Qf5 {[%clk 0:00:48]} 27. Qe3 {[%clk 0:01:04.4]} 27... Re6
{[%clk 0:00:46.5]} 28. Bg3 {[%clk 0:00:58.7]} 28... h6 {[%clk 0:00:41.6]} 29.
Qb6 {[%clk 0:00:48]} 29... Bxe5 {[%clk 0:00:35.3]} 30. Qe3 {[%clk 0:00:44.8]}
30... Bxg3 {[%clk 0:00:21.1]} 31. Qxe6+ {[%clk 0:00:45.7]} 31... Qxe6 {[%clk
0:00:21.1]} 32. Rxe6 {[%clk 0:00:46.1]} 32... Kf7 {[%clk 0:00:21.6]} 33. Re3
{[%clk 0:00:46.6]} 33... Bd6 {[%clk 0:00:19.6]} 34. g4 {[%clk 0:00:40.7]} 34...
g5 {[%clk 0:00:18.7]} 35. Kg2 {[%clk 0:00:40.6]} 35... Bf4 {[%clk 0:00:15.5]}
36. Re2 {[%clk 0:00:40.6]} 36... c5 {[%clk 0:00:15]} 37. Kf3 {[%clk 0:00:40.9]}
37... b5 {[%clk 0:00:10.2]} 38. c4 {[%clk 0:00:36.7]} 38... dxc4 {[%clk
0:00:04.1]} 39. bxc4 {[%clk 0:00:37.6]} 39... b4 {[%clk 0:00:04.5]} 40. Re1
{[%clk 0:00:28.2]} 40... a5 {[%clk 0:00:03.6]} 41. Ke4 {[%clk 0:00:28.2]} 41...
Ke6 {[%clk 0:00:03.4]} 42. Rd1 {[%clk 0:00:28.4]} 42... a4 {[%clk 0:00:02.2]}
43. Rd8 {[%clk 0:00:20.3]} 43... b3 {[%clk 0:00:02.4]} 44. axb3 {[%clk
0:00:19.6]} 44... axb3 {[%clk 0:00:02.5]} 45. Rd3 {[%clk 0:00:20]} 45... b2
{[%clk 0:00:02.3]} 46. Rb3 {[%clk 0:00:20.1]} 1-0

[Event "Early-Titled-Tuesday-Blitz-September-12-2023"]
[Site "Chess.com"]
[Date "2023.09.12"]
[Round "4"]
[White "cukin84"]
[Black "OlaaLa"]
[Result "0-1"]
[WhiteElo "2213"]
[BlackElo "2414"]
[TimeControl "180+1"]
[EndTime "8:38:37 PDT"]
[Termination "OlaaLa won by resignation"]

1. e4 {[%clk 0:03:00.9]} 1... e5 {[%clk 0:02:55.4]} 2. Nf3 {[%clk 0:03:00.1]}
2... Nc6 {[%clk 0:02:55.7]} 3. c3 {[%clk 0:02:59.9]} 3... d5 {[%clk 0:02:50]} 4.
Qa4 {[%clk 0:02:58.9]} 4... dxe4 {[%clk 0:02:39.5]} 5. Nxe5 {[%clk 0:02:58.1]}
5... Qd5 {[%clk 0:02:19.6]} 6. Nxc6 {[%clk 0:02:57]} 6... bxc6 {[%clk 0:02:20]}
7. Bc4 {[%clk 0:02:56.2]} 7... Qd6 {[%clk 0:02:11.3]} 8. d3 {[%clk 0:02:55.7]}
8... exd3 {[%clk 0:01:50.8]} 9. O-O {[%clk 0:02:54.7]} 9... Be7 {[%clk 0:01:46]}
10. Bxd3 {[%clk 0:02:52.6]} 10... Nf6 {[%clk 0:01:40]} 11. Bf4 {[%clk 0:02:44]}
11... Qd5 {[%clk 0:01:34.6]} 12. Rd1 {[%clk 0:02:39.8]} 12... Bd7 {[%clk
0:01:06.5]} 13. Ba6 {[%clk 0:02:29.4]} 13... Qf5 {[%clk 0:00:56.7]} 14. Bb7
{[%clk 0:02:16.4]} 14... O-O {[%clk 0:00:48.8]} 15. Bxa8 {[%clk 0:02:14.6]}
15... Rxa8 {[%clk 0:00:49.7]} 16. Nd2 {[%clk 0:02:12.4]} 16... c5 {[%clk
0:00:47.9]} 17. Qc4 {[%clk 0:01:56.2]} 17... Bc6 {[%clk 0:00:47.8]} 18. Bg3
{[%clk 0:01:46.7]} 18... Bd6 {[%clk 0:00:40.4]} 19. Bxd6 {[%clk 0:01:27.4]}
19... cxd6 {[%clk 0:00:41.3]} 20. f3 {[%clk 0:01:27.1]} 20... Rb8 {[%clk
0:00:36.4]} 21. b3 {[%clk 0:01:25.5]} 21... Nd5 {[%clk 0:00:29.9]} 22. Qe4
{[%clk 0:01:16]} 22... Qf6 {[%clk 0:00:19.8]} 23. Qd3 {[%clk 0:01:13.1]} 23...
Nf4 {[%clk 0:00:19.4]} 24. Qf1 {[%clk 0:01:10.9]} 24... Qxc3 {[%clk 0:00:17.7]}
25. Ne4 {[%clk 0:01:11.1]} 25... Qe5 {[%clk 0:00:17.3]} 26. Nxd6 {[%clk
0:01:06.9]} 26... h5 {[%clk 0:00:17.3]} 27. Ne4 {[%clk 0:01:05.9]} 27... Bxe4
{[%clk 0:00:16.5]} 28. fxe4 {[%clk 0:01:05.5]} 28... Qxe4 {[%clk 0:00:17.4]} 29.
Re1 {[%clk 0:00:59.9]} 29... Qd4+ {[%clk 0:00:17.9]} 30. Qf2 {[%clk 0:00:58.7]}
30... Nd3 {[%clk 0:00:18.5]} 31. Qxd4 {[%clk 0:00:58.1]} 31... cxd4 {[%clk
0:00:18.1]} 32. Red1 {[%clk 0:00:57.7]} 32... Nf4 {[%clk 0:00:18.8]} 33. Kf2
{[%clk 0:00:55.2]} 33... Ne6 {[%clk 0:00:18.9]} 34. Rd2 {[%clk 0:00:53.8]} 34...
Rd8 {[%clk 0:00:19.1]} 35. Re1 {[%clk 0:00:53.1]} 35... Kf8 {[%clk 0:00:18.6]}
36. g3 {[%clk 0:00:51.1]} 36... Ke7 {[%clk 0:00:19]} 37. Kf3 {[%clk 0:00:50.7]}
37... Kf6 {[%clk 0:00:19.3]} 38. h3 {[%clk 0:00:49.5]} 38... Rc8 {[%clk
0:00:19.8]} 39. Kg2 {[%clk 0:00:46.5]} 39... Rc3 {[%clk 0:00:19.8]} 40. g4
{[%clk 0:00:46]} 40... h4 {[%clk 0:00:19.6]} 41. Rf2+ {[%clk 0:00:44.9]} 41...
Ke7 {[%clk 0:00:19.9]} 42. Rf4 {[%clk 0:00:43.3]} 42... Rc2+ {[%clk 0:00:17.7]}
43. Rf2 {[%clk 0:00:43.1]} 43... Rc3 {[%clk 0:00:18]} 44. Rd2 {[%clk 0:00:41.7]}
44... Kd6 {[%clk 0:00:16.9]} 45. Kh2 {[%clk 0:00:40.7]} 45... Kd5 {[%clk
0:00:17.1]} 46. Rf1 {[%clk 0:00:39.5]} 46... f6 {[%clk 0:00:17.2]} 47. Rf5+
{[%clk 0:00:39.1]} 47... Ke4 {[%clk 0:00:16.6]} 48. Rf1 {[%clk 0:00:38.3]} 48...
Re3 {[%clk 0:00:16.6]} 49. Rfd1 {[%clk 0:00:36.9]} 49... d3 {[%clk 0:00:16.9]}
50. Rc1 {[%clk 0:00:36.4]} 50... Ng5 {[%clk 0:00:17.2]} 51. Rc4+ {[%clk
0:00:34.1]} 51... Kf3 {[%clk 0:00:17.8]} 52. Rd4 {[%clk 0:00:31.8]} 52... Re2+
{[%clk 0:00:17.6]} 53. Rxe2 {[%clk 0:00:29.9]} 53... dxe2 {[%clk 0:00:18.5]} 54.
Rd3+ {[%clk 0:00:26.9]} 54... Kf4 {[%clk 0:00:18.3]} 55. Rd4+ {[%clk 0:00:26]}
55... Ke3 {[%clk 0:00:18.7]} 56. Rd8 {[%clk 0:00:25.8]} 56... e1=Q {[%clk
0:00:18.9]} 57. Re8+ {[%clk 0:00:26.1]} 57... Ne4 {[%clk 0:00:19.2]} 58. Rxe4+
{[%clk 0:00:25.6]} 58... Kxe4 {[%clk 0:00:19.3]} 0-1

[Event "Early-Titled-Tuesday-Blitz-September-12-2023"]
[Site "Chess.com"]
[Date "2023.09.12"]
[Round "4"]
[White "WaybackBoy"]
[Black "whiteglovethief"]
[Result "0-1"]
[WhiteElo "2704"]
[BlackElo "2545"]
[TimeControl "180+1"]
[EndTime "8:38:39 PDT"]
[Termination "whiteglovethief won by resignation"]

1. d4 {[%clk 0:03:00.9]} 1... d5 {[%clk 0:02:57.7]} 2. c4 {[%clk 0:03:01.4]}
2... e6 {[%clk 0:02:58]} 3. Nf3 {[%clk 0:03:02.1]} 3... h6 {[%clk 0:02:58]} 4.
g3 {[%clk 0:03:02.8]} 4... Nf6 {[%clk 0:02:58.3]} 5. Bg2 {[%clk 0:03:03.3]} 5...
Bd6 {[%clk 0:02:58.6]} 6. O-O {[%clk 0:03:03.8]} 6... O-O {[%clk 0:02:59.2]} 7.
b3 {[%clk 0:03:04.5]} 7... dxc4 {[%clk 0:02:58.2]} 8. bxc4 {[%clk 0:03:04.8]}
8... Nc6 {[%clk 0:02:58.1]} 9. Nc3 {[%clk 0:03:03.7]} 9... e5 {[%clk 0:02:58.2]}
10. d5 {[%clk 0:03:04.4]} 10... Na5 {[%clk 0:02:57.8]} 11. Nd2 {[%clk
0:03:03.1]} 11... b6 {[%clk 0:02:48.2]} 12. Bb2 {[%clk 0:03:02.2]} 12... a6
{[%clk 0:02:48]} 13. e4 {[%clk 0:02:55.5]} 13... Bd7 {[%clk 0:02:43.8]} 14. Qc2
{[%clk 0:02:53.4]} 14... c5 {[%clk 0:02:35.1]} 15. dxc6 {[%clk 0:02:47.7]} 15...
Nxc6 {[%clk 0:02:32.3]} 16. Nd5 {[%clk 0:02:46.5]} 16... Rc8 {[%clk 0:02:28.9]}
17. Qb3 {[%clk 0:02:44.6]} 17... b5 {[%clk 0:02:25.1]} 18. cxb5 {[%clk
0:02:42.2]} 18... axb5 {[%clk 0:02:26]} 19. Rfd1 {[%clk 0:02:30.4]} 19... Nxd5
{[%clk 0:02:13.3]} 20. exd5 {[%clk 0:02:24.9]} 20... Na5 {[%clk 0:02:10.1]} 21.
Qe3 {[%clk 0:01:57.7]} 21... f5 {[%clk 0:02:06.7]} 22. Bxe5 {[%clk 0:01:55.7]}
22... Re8 {[%clk 0:02:06]} 23. Nf3 {[%clk 0:01:54.8]} 23... Nc4 {[%clk
0:02:01.6]} 24. Qb3 {[%clk 0:01:39.3]} 24... Nxe5 {[%clk 0:02:01]} 25. Nxe5
{[%clk 0:01:39.4]} 25... Bxe5 {[%clk 0:01:59.8]} 26. Rac1 {[%clk 0:01:37.2]}
26... Kh8 {[%clk 0:01:59]} 27. d6 {[%clk 0:01:36.1]} 27... Qb6 {[%clk
0:01:55.7]} 28. Qf7 {[%clk 0:01:28.7]} 28... Rxc1 {[%clk 0:01:52]} 29. Rxc1
{[%clk 0:01:28.1]} 29... Qxd6 {[%clk 0:01:49.9]} 30. Bf3 {[%clk 0:01:20.7]}
30... Rf8 {[%clk 0:01:48.4]} 31. Qh5 {[%clk 0:01:20.1]} 31... Be8 {[%clk
0:01:43.5]} 32. Qh4 {[%clk 0:01:18.8]} 32... f4 {[%clk 0:01:35.7]} 33. Rd1
{[%clk 0:01:18.5]} 33... Qf6 {[%clk 0:01:32.8]} 34. Qxf6 {[%clk 0:01:14]} 34...
Bxf6 {[%clk 0:01:22.6]} 35. gxf4 {[%clk 0:01:12]} 35... Bf7 {[%clk 0:01:22.7]}
36. Rb1 {[%clk 0:01:09.2]} 36... Bc4 {[%clk 0:01:21.8]} 37. Bc6 {[%clk
0:01:08.2]} 37... Bxa2 {[%clk 0:01:12.2]} 38. Rxb5 {[%clk 0:01:08]} 38... Rc8
{[%clk 0:01:11.2]} 39. Be4 {[%clk 0:01:05.5]} 39... Bc4 {[%clk 0:01:03]} 40. Rb4
{[%clk 0:01:03.6]} 40... Bg8 {[%clk 0:01:00.1]} 41. f3 {[%clk 0:00:59.9]} 41...
Bh7 {[%clk 0:00:54.1]} 42. Kg2 {[%clk 0:00:56.9]} 42... Rf8 {[%clk 0:00:53.3]}
43. Kg3 {[%clk 0:00:55.5]} 43... Be7 {[%clk 0:00:53]} 44. Rd4 {[%clk 0:00:52.3]}
44... Bc5 {[%clk 0:00:52]} 45. Rd3 {[%clk 0:00:50.6]} 45... Ba7 {[%clk
0:00:49.5]} 46. Bxh7 {[%clk 0:00:36.4]} 46... Kxh7 {[%clk 0:00:50.4]} 47. h4
{[%clk 0:00:35.6]} 47... Bb8 {[%clk 0:00:49.3]} 48. Rd4 {[%clk 0:00:35.7]} 48...
h5 {[%clk 0:00:47.3]} 49. Rb4 {[%clk 0:00:31.5]} 49... g6 {[%clk 0:00:46.9]} 50.
Rb7+ {[%clk 0:00:30.7]} 50... Kh6 {[%clk 0:00:46.6]} 51. Rb4 {[%clk 0:00:31.5]}
51... Bd6 {[%clk 0:00:37]} 52. Rd4 {[%clk 0:00:31.2]} 52... Bc7 {[%clk
0:00:37.1]} 53. Rc4 {[%clk 0:00:31.6]} 53... Bb8 {[%clk 0:00:36.8]} 54. Rb4
{[%clk 0:00:32.2]} 54... Kg7 {[%clk 0:00:31.7]} 55. Rb7+ {[%clk 0:00:31.8]}
55... Kg8 {[%clk 0:00:31.5]} 56. Rb4 {[%clk 0:00:31.1]} 56... Bd6 {[%clk
0:00:30.6]} 57. Rd4 {[%clk 0:00:31]} 57... Rf6 {[%clk 0:00:30.8]} 58. Rc4 {[%clk
0:00:30.7]} 58... Rxf4 {[%clk 0:00:28.7]} 59. Rc6 {[%clk 0:00:20]} 59... Rd4+
{[%clk 0:00:27.2]} 60. Kg2 {[%clk 0:00:19.6]} 60... Kf7 {[%clk 0:00:26.6]} 0-1

[Event "Early-Titled-Tuesday-Blitz-September-12-2023"]
[Site "Chess.com"]
[Date "2023.09.12"]
[Round "4"]
[White "mishanick"]
[Black "Alexandr_Predke"]
[Result "1/2-1/2"]
[WhiteElo "3082"]
[BlackElo "2894"]
[TimeControl "180+1"]
[EndTime "8:38:42 PDT"]
[Termination "Game drawn by repetition"]

1. d4 {[%clk 0:02:56.7]} 1... Nf6 {[%clk 0:03:00.2]} 2. c4 {[%clk 0:02:57.4]}
2... e6 {[%clk 0:03:00.7]} 3. Nc3 {[%clk 0:02:58.1]} 3... Bb4 {[%clk 0:02:59.4]}
4. e3 {[%clk 0:02:58.6]} 4... b6 {[%clk 0:02:55.9]} 5. Bd3 {[%clk 0:02:58.3]}
5... Bb7 {[%clk 0:02:53]} 6. Nf3 {[%clk 0:02:58.8]} 6... c5 {[%clk 0:02:51]} 7.
O-O {[%clk 0:02:57.5]} 7... O-O {[%clk 0:02:47]} 8. Bd2 {[%clk 0:02:45.8]} 8...
cxd4 {[%clk 0:02:45.3]} 9. exd4 {[%clk 0:02:46]} 9... d5 {[%clk 0:02:39]} 10.
cxd5 {[%clk 0:02:45.8]} 10... exd5 {[%clk 0:02:35.2]} 11. Ne5 {[%clk 0:02:39.7]}
11... Nbd7 {[%clk 0:02:31.3]} 12. Bg5 {[%clk 0:02:39.4]} 12... Be7 {[%clk
0:02:31.2]} 13. Re1 {[%clk 0:02:32.3]} 13... Re8 {[%clk 0:02:13.2]} 14. Qf3
{[%clk 0:02:31.4]} 14... Nxe5 {[%clk 0:01:54.2]} 15. Rxe5 {[%clk 0:01:46.4]}
15... Rc8 {[%clk 0:01:11.3]} 16. Rae1 {[%clk 0:01:44.7]} 16... Ne4 {[%clk
0:01:11.2]} 17. Nxe4 {[%clk 0:01:23.5]} 17... dxe4 {[%clk 0:01:09.4]} 18. Bxe4
{[%clk 0:01:19.9]} 18... Bxg5 {[%clk 0:01:09.6]} 19. Bxb7 {[%clk 0:01:00]} 19...
Rxe5 {[%clk 0:00:49.7]} 20. dxe5 {[%clk 0:01:00.9]} 20... Qd2 {[%clk 0:00:44.2]}
21. Rf1 {[%clk 0:01:00.5]} 21... Rc1 {[%clk 0:00:44.1]} 22. g3 {[%clk
0:01:01.1]} 22... Rc5 {[%clk 0:00:31.1]} 23. Rd1 {[%clk 0:00:47.5]} 23... Qxd1+
{[%clk 0:00:28.1]} 24. Qxd1 {[%clk 0:00:45.4]} 24... Rc1 {[%clk 0:00:29]} 25.
Bf3 {[%clk 0:00:37.2]} 25... Kf8 {[%clk 0:00:23.7]} 26. Kg2 {[%clk 0:00:33]}
26... Rxd1 {[%clk 0:00:23.9]} 27. Bxd1 {[%clk 0:00:33.9]} 27... Bc1 {[%clk
0:00:23.9]} 28. b4 {[%clk 0:00:33.3]} 28... Bb2 {[%clk 0:00:20.9]} 29. f4 {[%clk
0:00:32.5]} 29... a5 {[%clk 0:00:21.5]} 30. b5 {[%clk 0:00:24.1]} 30... Ke7
{[%clk 0:00:20.1]} 31. Bc2 {[%clk 0:00:19.8]} 31... h6 {[%clk 0:00:20]} 32. Kf3
{[%clk 0:00:20]} 32... f6 {[%clk 0:00:19.3]} 33. Ke4 {[%clk 0:00:13.5]} 33...
fxe5 {[%clk 0:00:18.5]} 34. fxe5 {[%clk 0:00:14]} 34... Bc3 {[%clk 0:00:16.2]}
35. Kd5 {[%clk 0:00:13.9]} 35... Be1 {[%clk 0:00:15.2]} 36. Kc6 {[%clk
0:00:13.2]} 36... Bf2 {[%clk 0:00:15.1]} 37. Bf5 {[%clk 0:00:13.3]} 37... Bg1
{[%clk 0:00:14]} 38. h3 {[%clk 0:00:12]} 38... Bf2 {[%clk 0:00:14.3]} 39. h4
{[%clk 0:00:11.3]} 39... Bg1 {[%clk 0:00:14.9]} 40. h5 {[%clk 0:00:11.2]} 40...
Bd4 {[%clk 0:00:14.9]} 41. Kd5 {[%clk 0:00:08.5]} 41... Bf2 {[%clk 0:00:14.8]}
42. g4 {[%clk 0:00:07.3]} 42... Be3 {[%clk 0:00:14.6]} 43. Bd3 {[%clk
0:00:07.8]} 43... Bc1 {[%clk 0:00:14.2]} 44. Ke4 {[%clk 0:00:08.5]} 44... Bb2
{[%clk 0:00:14.1]} 45. Kf5 {[%clk 0:00:09.2]} 45... Bc3 {[%clk 0:00:14.2]} 46.
Bc4 {[%clk 0:00:06.6]} 46... Bb2 {[%clk 0:00:14.3]} 47. Ke4 {[%clk 0:00:06.4]}
47... Bc3 {[%clk 0:00:14.5]} 48. Kd5 {[%clk 0:00:07.1]} 48... Be1 {[%clk
0:00:14.8]} 49. Kc6 {[%clk 0:00:07.2]} 49... Bf2 {[%clk 0:00:15]} 50. Bd5 {[%clk
0:00:07.7]} 50... Be3 {[%clk 0:00:15.3]} 51. Bc4 {[%clk 0:00:08.5]} 51... Bf2
{[%clk 0:00:15.6]} 52. Bd5 {[%clk 0:00:09.3]} 52... Be3 {[%clk 0:00:15.9]} 53.
Bc4 {[%clk 0:00:10.1]} 53... Bf2 {[%clk 0:00:16.2]} 1/2-1/2

[Event "Early-Titled-Tuesday-Blitz-September-12-2023"]
[Site "Chess.com"]
[Date "2023.09.12"]
[Round "4"]
[White "Djager97"]
[Black "tdf98pantani"]
[Result "1-0"]
[WhiteElo "2553"]
[BlackElo "2724"]
[TimeControl "180+1"]
[EndTime "8:38:42 PDT"]
[Termination "Djager97 won on time"]

1. e4 {[%clk 0:03:00.9]} 1... c5 {[%clk 0:02:54.6]} 2. Nf3 {[%clk 0:03:00.7]}
2... d6 {[%clk 0:02:55]} 3. d4 {[%clk 0:03:01.1]} 3... cxd4 {[%clk 0:02:55.5]}
4. Nxd4 {[%clk 0:03:02]} 4... Nf6 {[%clk 0:02:56]} 5. Nc3 {[%clk 0:03:02.7]}
5... a6 {[%clk 0:02:56.6]} 6. Bg5 {[%clk 0:03:03.3]} 6... Nbd7 {[%clk
0:02:54.2]} 7. Qe2 {[%clk 0:03:02.3]} 7... h6 {[%clk 0:02:47.6]} 8. Bd2 {[%clk
0:02:49.8]} 8... e5 {[%clk 0:02:33.5]} 9. Nb3 {[%clk 0:02:47.2]} 9... b5 {[%clk
0:02:32.2]} 10. O-O-O {[%clk 0:02:40.1]} 10... Bb7 {[%clk 0:02:32]} 11. f4
{[%clk 0:02:36.4]} 11... Be7 {[%clk 0:02:27.2]} 12. g4 {[%clk 0:02:32.8]} 12...
exf4 {[%clk 0:02:21]} 13. Bxf4 {[%clk 0:02:29.9]} 13... O-O {[%clk 0:02:19.5]}
14. Rg1 {[%clk 0:02:21.6]} 14... b4 {[%clk 0:02:18]} 15. Nd5 {[%clk 0:02:21.2]}
15... Nxd5 {[%clk 0:02:15.8]} 16. exd5 {[%clk 0:02:22.1]} 16... Bg5 {[%clk
0:02:13.3]} 17. Qd2 {[%clk 0:02:09.5]} 17... a5 {[%clk 0:02:02.1]} 18. Bxg5
{[%clk 0:01:38.7]} 18... hxg5 {[%clk 0:01:57.1]} 19. Kb1 {[%clk 0:01:30]} 19...
Ne5 {[%clk 0:01:55.9]} 20. Be2 {[%clk 0:01:12.9]} 20... a4 {[%clk 0:01:45.7]}
21. Nd4 {[%clk 0:01:12.6]} 21... b3 {[%clk 0:01:38.5]} 22. Nf5 {[%clk 0:01:03]}
22... g6 {[%clk 0:01:13.5]} 23. h4 {[%clk 0:00:52.8]} 23... bxc2+ {[%clk
0:01:02.7]} 24. Qxc2 {[%clk 0:00:42.5]} 24... gxh4 {[%clk 0:00:59.9]} 25. Rh1
{[%clk 0:00:25.7]} 25... Rc8 {[%clk 0:00:43.4]} 26. Qe4 {[%clk 0:00:24.6]} 26...
g5 {[%clk 0:00:22]} 27. Bd3 {[%clk 0:00:15.5]} 27... Nxd3 {[%clk 0:00:17.6]} 28.
Ne7+ {[%clk 0:00:07.9]} 28... Kg7 {[%clk 0:00:16.4]} 29. Nxc8 {[%clk 0:00:06.6]}
29... Ne5 {[%clk 0:00:13.3]} 30. Na7 {[%clk 0:00:02.5]} 30... Qd7 {[%clk
0:00:12.3]} 31. Rc1 {[%clk 0:00:01.7]} 31... Re8 {[%clk 0:00:10.6]} 32. Nc6
{[%clk 0:00:01.7]} 32... Nxg4 {[%clk 0:00:05]} 33. Qd4+ {[%clk 0:00:01.8]} 33...
Ne5 {[%clk 0:00:05.1]} 34. Nxe5 {[%clk 0:00:01.7]} 34... Rxe5 {[%clk 0:00:05]}
35. Rhg1 {[%clk 0:00:01.9]} 35... f6 {[%clk 0:00:05.1]} 36. Rcd1 {[%clk
0:00:01.4]} 36... Bxd5 {[%clk 0:00:05]} 37. Qb4 {[%clk 0:00:01.4]} 37... Qe6
{[%clk 0:00:03.6]} 38. a3 {[%clk 0:00:01.6]} 38... Kg6 {[%clk 0:00:02.4]} 39.
Ka1 {[%clk 0:00:01.9]} 39... h3 {[%clk 0:00:02.6]} 40. Rc1 {[%clk 0:00:02.3]}
40... h2 {[%clk 0:00:02.3]} 41. Rh1 {[%clk 0:00:01.9]} 41... Bxh1 {[%clk
0:00:01.9]} 42. Rxh1 {[%clk 0:00:02.1]} 1-0